[Event "WJCC U20 Open 2019"]
[Site "New Delhi"]
[Date "2019.10.18"]
[Round "5.30"]
[White "Nitish Belurkar"]
[Black "Percivaldi, Martin"]
[Result "1/2-1/2"]
[ECO "C54"]
[WhiteElo "2311"]
[BlackElo "2391"]
[Annotator "NA RC"]
[PlyCount "82"]
[EventDate "2019.10.15"]
[EventType "swiss"]
[EventCountry "IND"]
[SourceTitle "playchess.com"]
[Source "ChessBase"]
[SourceQuality "1"]
[TimeControl "40/5400+30:1800+30"]

1. e4 {[%emt 0:00:00]} e5 {[%emt 0:01:11]} 2. Nf3 {[%emt 0:00:00]} Nc6 {[%emt 0:01:16]} 3. Bc4 {[%emt 0:00:00]} Bc5 {[%emt 0:00:20]} 4. c3 {[%emt 0:00:00]} Nf6 {[%emt 0:00:15]} 5. d4 {[%emt 0:00:00]} exd4 {[%emt 0:00:38]} 6. e5 {[%emt 0:00:00]} d5 {[%emt 0:00:50]} 7. Bb5 {[%emt 0:00:02]} Ne4 {[%emt 0:00:12]} 8. cxd4 {[%emt 0:00:06]} Bb6 {[%emt 0:00:13]} 9. Nc3 {[%emt 0:00:07]} O-O {[%emt 0:00:22]} 10. Be3 {[%emt 0:00:04]} Bg4 {[%emt 0:00:38]} 11. h3 {[%emt 0:00:07]} Bh5 {[%emt 0:00:19]} 12. Qc2 {[%emt 0:00:02]} Nxc3 {[%emt 0:00:31]} 13. bxc3 {[%emt 0:05:05]} f6 {[%emt 0:00:15]} 14. Bxc6 {[%emt 0:01:36]} Bxf3 {[%emt 0:00:53]} 15. gxf3 {[%emt 0:01:57]} bxc6 {[%emt 0:00:09]} 16. a4 {[%emt 0:01:43]} a6 {[%emt 0:19:04]} 17. a5 {[%emt 0:04:09]} Ba7 {[%emt 0:00:09]} 18. f4 {[%emt 0:05:58]} Qe7 {[%emt 0:01:36]} 19. Qd3 {[%emt 0:19:48]} c5 {[%emt 0:27:50]} 20. Rb1 {[%emt 0:10:16]} c4 {[%emt 0:12:00]} 21. Qc2 {[%emt 0:09:55]} Rab8 {[%emt 0:02:34]} 22. Ke2 {[%emt 0:06:06]} c5 {[%emt 0:08:05]} 23. Rhg1 {[%emt 0:06:07]} cxd4 {[%emt 0:01:25]} 24. cxd4 {[%emt 0:00:16]} Rb5 {[%emt 0:02:02]} 25. Qf5 {[%emt 0:06:05]} fxe5 {[%emt 0:02:56]} 26. Qxe5 {[%emt 0:00:06]} Qf7 {[%emt 0:00:32]} 27. Rxb5 {[%emt 0:00:46]} axb5 {[%emt 0:00:01]} 28. f5 {[%emt 0:02:45]} Bb8 {[%emt 0:01:56]} 29. Qe6 {[%emt 0:00:08]} Kh8 {[%emt 0:05:53]} 30. Rb1 {[%emt 0:05:39]} Qh5+ {[%emt 0:00:05]} 31. Kd2 {[%emt 0:00:06]} Qf3 {[%emt 0:00:05]} 32. Rxb5 {[%emt 0:01:57]} Bf4 {[%emt 0:00:29]} 33. Kc3 {[%emt 0:00:14]} Bxe3 {[%emt 0:01:23]} 34. fxe3 {[%emt 0:00:31]} Qf1 {[%emt 0:03:08]} 35. Qxd5 {[%emt 0:05:33]} Qc1+ {[%emt 0:03:20]} 36. Kb4 {[%emt 0:00:10]} c3 {[%emt 0:00:11]} 37. Qc5 {[%emt 0:01:07]} Qb1+ {[%emt 0:03:02]} 38. Kxc3 {[%emt 0:01:47]} Qc1+ {[%emt 0:00:36]} 39. Kb4 {[%emt 0:01:02]} Qb1+ {[%emt 0:01:24]} 40. Kc3 {[%emt 0:01:09]} Qc1+ {[%emt 0:00:22]} 41. Kb4 {[%emt 0:32:27]} Qb1+ {[%emt 0:31:49]} 1/2-1/2

[Event "WJCC U20 Open 2019"]
[Site "New Delhi"]
[Date "2019.10.18"]
[Round "5.31"]
[White "Vatsal Singhania"]
[Black "Anuj Shrivatri"]
[Result "0-1"]
[ECO "C50"]
[WhiteElo "2157"]
[BlackElo "2390"]
[Annotator "NA"]
[PlyCount "178"]
[EventDate "2019.10.15"]
[EventType "swiss"]
[EventCountry "IND"]
[SourceTitle "playchess.com"]
[Source "ChessBase"]
[SourceQuality "1"]
[TimeControl "40/5400+30:1800+30"]

1. e4 {[%emt 0:00:00]} e5 {[%emt 0:00:00]} 2. Nf3 {[%emt 0:00:00]} Nc6 {[%emt 0:00:00]} 3. Bc4 {[%emt 0:00:00]} Nf6 {[%emt 0:00:20]} 4. d3 {[%emt 0:00:00]} Bc5 {[%emt 0:00:07]} 5. O-O {[%emt 0:00:00]} d6 {[%emt 0:00:05]} 6. a4 {[%emt 0:00:00]} a6 {[%emt 0:00:26]} 7. c3 {[%emt 0:00:08]} Ba7 {[%emt 0:00:06]} 8. Nbd2 {[%emt 0:00:15]} O-O {[%emt 0:00:08]} 9. h3 {[%emt 0:00:05]} Ne7 {[%emt 0:00:18]} 10. Re1 {[%emt 0:00:06]} Ng6 {[%emt 0:00:16]} 11. Nf1 {[%emt 0:00:04]} c6 {[%emt 0:00:14]} 12. Bb3 {[%emt 0:01:15]} d5 {[%emt 0:03:13]} 13. exd5 {[%emt 0:04:51]} Nxd5 {[%emt 0:00:41]} 14. d4 {[%emt 0:10:20]} exd4 {[%emt 0:00:17]} 15. cxd4 {[%emt 0:00:34]} Ndf4 {[%emt 0:20:37]} 16. Be3 {[%emt 0:02:33]} Be6 {[%emt 0:05:25]} 17. Bxe6 {[%emt 0:08:03]} Nxe6 {[%emt 0:08:23]} 18. Qb3 {[%emt 0:00:13]} Qd5 {[%emt 0:08:26]} 19. N1d2 {[%emt 0:07:00]} Qxb3 {[%emt 0:07:01]} 20. Nxb3 {[%emt 0:00:06]} Rfd8 {[%emt 0:06:13]} 21. Na5 {[%emt 0:02:41]} Rd7 {[%emt 0:02:18]} 22. b3 {[%emt 0:08:06]} Ne7 {[%emt 0:01:39]} 23. Rac1 {[%emt 0:04:34]} Nd5 {[%emt 0:06:01]} 24. Red1 {[%emt 0:04:15]} f6 {[%emt 0:01:18]} 25. Kf1 {[%emt 0:03:49]} Kf7 {[%emt 0:00:53]} 26. b4 {[%emt 0:05:46]} g6 {[%emt 0:05:14]} 27. Rd3 {[%emt 0:06:12]} Bb6 {[%emt 0:06:49]} 28. Nc4 {[%emt 0:00:29]} Bd8 {[%emt 0:02:29]} 29. Rb3 {[%emt 0:02:11]} Nec7 {[%emt 0:04:25]} 30. Bd2 {[%emt 0:03:07]} Be7 {[%emt 0:00:55]} 31. Re1 {[%emt 0:01:35]} Bd6 {[%emt 0:01:21]} 32. Rbb1 {[%emt 0:01:51]} Re8 {[%emt 0:01:09]} 33. Rxe8 {[%emt 0:00:10]} Kxe8 {[%emt 0:01:05]} 34. Na5 {[%emt 0:00:49]} Ne6 {[%emt 0:00:34]} 35. b5 cxb5 {[%emt 0:03:23]} 36. axb5 {[%emt 0:00:11]} b6 {[%emt 0:00:28]} 37. Nc4 {[%emt 0:01:31]} a5 {[%emt 0:00:16]} 38. Ne3 {[%emt 0:00:40]} Nec7 {[%emt 0:00:43]} 39. Ne1 {[%emt 0:01:10]} Bb4 {[%emt 0:01:51]} 40. Nf3 {[%emt 0:04:47]} Bxd2 {[%emt 0:03:31]} 41. Nxd2 {[%emt 0:30:10]} Nc3 {[%emt 0:04:18]} 42. Re1 {[%emt 0:00:00]} Kd8 {[%emt 0:02:07]} 43. Ndc4 {[%emt 0:00:00]} Rxd4 {[%emt 0:04:29]} 44. Nxb6 {[%emt 0:00:00]} N7xb5 {[%emt 0:01:20]} 45. Ra1 {[%emt 0:00:00]} a4 {[%emt 0:00:16]} 46. Nc2 {[%emt 0:00:00]} Rd2 {[%emt 0:04:00]} 47. Ne3 {[%emt 0:00:00]} a3 {[%emt 0:05:21]} 48. Nbc4 {[%emt 0:00:00]} Rb2 {[%emt 0:00:23]} 49. g4 {[%emt 0:00:00]} Rb3 {[%emt 0:04:52]} 50. Nd2 {[%emt 0:00:00]} Rb4 {[%emt 0:00:27]} 51. Nc2 {[%emt 0:00:00]} Rb2 {[%emt 0:01:51]} 52. Nxa3 {[%emt 0:00:00]} Rxd2 {[%emt 0:00:08]} 53. Nxb5 {[%emt 0:00:00]} Nxb5 {[%emt 0:00:09]} 54. Ra8+ {[%emt 0:00:00]} Ke7 {[%emt 0:02:13]} 55. Rh8 {[%emt 0:00:00]} Nd6 {[%emt 0:01:54]} 56. Rxh7+ {[%emt 0:00:00]} Ke6 {[%emt 0:02:29]} 57. Ke1 {[%emt 0:00:00]} Ra2 {[%emt 0:00:27]} 58. h4 {[%emt 0:00:00]} Ne4 {[%emt 0:00:53]} 59. Rg7 {[%emt 0:00:00]} Nxf2 {[%emt 0:01:20]} 60. g5 {[%emt 0:00:00]} Nd3+ {[%emt 0:00:38]} 61. Kf1 {[%emt 0:00:00]} Nf4 {[%emt 0:00:07]} 62. gxf6 {[%emt 0:00:00]} Kxf6 {[%emt 0:00:06]} 63. Rh7 {[%emt 0:00:00]} Ra5 {[%emt 0:00:41]} 64. Kf2 {[%emt 0:00:00]} Rh5 {[%emt 0:00:19]} 65. Ra7 {[%emt 0:00:00]} Rxh4 {[%emt 0:00:28]} 66. Kg3 {[%emt 0:00:00]} g5 {[%emt 0:00:05]} 67. Ra6+ {[%emt 0:00:00]} Ne6 {[%emt 0:00:06]} 68. Rb6 {[%emt 0:00:00]} Re4 {[%emt 0:00:23]} 69. Kf3 {[%emt 0:00:00]} Rc4 {[%emt 0:00:18]} 70. Kg3 {[%emt 0:00:00]} Kf5 {[%emt 0:00:14]} 71. Rb5+ {[%emt 0:00:00]} Nc5 {[%emt 0:00:16]} 72. Rb8 {[%emt 0:00:00]} Rc3+ {[%emt 0:00:33]} 73. Kg2 {[%emt 0:00:00]} Kf4 {[%emt 0:00:12]} 74. Rb4+ {[%emt 0:00:00]} Ne4 {[%emt 0:00:05]} 75. Rb2 {[%emt 0:00:00]} Rd3 {[%emt 0:00:08]} 76. Rb1 {[%emt 0:00:00]} Rd2+ {[%emt 0:00:05]} 77. Kg1 {[%emt 0:00:00]} g4 {[%emt 0:01:01]} 78. Rb4 {[%emt 0:00:00]} Ke3 {[%emt 0:00:24]} 79. Rb3+ {[%emt 0:00:00]} Rd3 {[%emt 0:00:26]} 80. Rb1 {[%emt 0:00:00]} g3 {[%emt 0:00:46]} 81. Kg2 {[%emt 0:00:00]} Rd2+ {[%emt 0:00:06]} 82. Kg1 {[%emt 0:00:00]} Kf3 {[%emt 0:01:38]} 83. Rb3+ {[%emt 0:00:00]} Kg4 84. Rb8 {[%emt 0:00:00]} Ng5 {[%emt 0:01:21]} 85. Rg8 {[%emt 0:00:00]} Rc2 {[%emt 0:00:18]} 86. Kh1 {[%emt 0:00:00]} g2+ {[%emt 0:01:48]} 87. Kh2 {[%emt 0:00:00]} Kf4 {[%emt 0:00:29]} 88. Rf8+ {[%emt 0:01:42]} Ke3 {[%emt 0:00:06]} 89. Rd8 {[%emt 0:00:34]} g1=Q+ {[%emt 0:01:02]} 0-1

[Event "WJCC U20 Open 2019"]
[Site "New Delhi"]
[Date "2019.10.18"]
[Round "5.32"]
[White "Arjun Kalyan"]
[Black "Papadiamandis, Elliot"]
[Result "1-0"]
[ECO "B51"]
[WhiteElo "2483"]
[BlackElo "2190"]
[Annotator "ChessBase"]
[PlyCount "93"]
[EventDate "2019.10.15"]
[EventType "swiss"]
[EventCountry "IND"]
[SourceTitle "playchess.com"]
[Source "ChessBase"]
[SourceQuality "1"]
[TimeControl "40/5400+30:1800+30"]

1. e4 {[%emt 0:00:00]} c5 {[%emt 0:00:59]} 2. Nf3 {[%emt 0:00:00]} d6 {[%emt 0:00:05]} 3. Bb5+ {[%emt 0:00:00]} Nd7 {[%emt 0:00:10]} 4. Ba4 {[%emt 0:00:00]} a6 {[%emt 0:01:15]} 5. c4 {[%emt 0:01:01]} Ngf6 {[%emt 0:00:08]} 6. Nc3 {[%emt 0:00:23]} e6 {[%emt 0:01:09]} 7. O-O {[%emt 0:00:26]} Be7 {[%emt 0:00:09]} 8. d4 {[%emt 0:00:28]} cxd4 {[%emt 0:00:12]} 9. Qxd4 {[%emt 0:00:16]} O-O {[%emt 0:00:37]} 10. Rd1 {[%emt 0:00:17]} Qc7 {[%emt 0:05:36]} 11. Bxd7 {[%emt 0:01:41]} Bxd7 {[%emt 0:01:21]} 12. Bf4 {[%emt 0:02:10]} Bc6 {[%emt 0:12:11]} 13. Bxd6 {[%emt 0:25:43]} Bxd6 {[%emt 0:01:57]} 14. Qxd6 {[%emt 0:00:07]} Qxd6 {[%emt 0:00:30]} 15. Rxd6 {[%emt 0:01:51]} Bxe4 {[%emt 0:01:33]} 16. Ne5 {[%emt 0:14:09]} Rfd8 {[%emt 0:11:52]} 17. Rad1 {[%emt 0:02:47]} Rxd6 {[%emt 0:00:53]} 18. Rxd6 {[%emt 0:00:02]} Rc8 {[%emt 0:04:14]} 19. f3 {[%emt 0:02:32]} Bc6 {[%emt 0:02:26]} 20. Nxc6 {[%emt 0:01:32]} bxc6 {[%emt 0:00:15]} 21. Na4 {[%emt 0:03:19]} Kf8 22. Nb6 {[%emt 0:01:28]} Rc7 {[%emt 0:05:32]} 23. Rd8+ {[%emt 0:00:23]} Ke7 {[%emt 0:00:39]} 24. Ra8 {[%emt 0:00:06]} Nd7 {[%emt 0:02:10]} 25. Rxa6 {[%emt 0:06:46]} Nc5 {[%emt 0:07:35]} 26. Ra5 {[%emt 0:01:32]} Kd6 {[%emt 0:03:58]} 27. b3 {[%emt 0:02:12]} Nb7 {[%emt 0:06:31]} 28. Rh5 {[%emt 0:07:41]} g6 {[%emt 0:03:39]} 29. Rxh7 {[%emt 0:00:35]} Kc5 {[%emt 0:00:08]} 30. Na4+ {[%emt 0:00:33]} Kb4 {[%emt 0:00:20]} 31. Rh8 {[%emt 0:00:46]} Rd7 {[%emt 0:02:04]} 32. Kf2 {[%emt 0:02:22]} Rd8 {[%emt 0:03:06]} 33. Rxd8 {[%emt 0:00:43]} Nxd8 {[%emt 0:00:01]} 34. Ke3 {[%emt 0:01:09]} Ka3 {[%emt 0:00:11]} 35. Nc5 {[%emt 0:04:09]} Kxa2 {[%emt 0:03:26]} 36. Kd3 {[%emt 0:00:02]} Ka3 {[%emt 0:01:02]} 37. Kc3 {[%emt 0:00:04]} e5 {[%emt 0:01:23]} 38. b4 {[%emt 0:00:06]} f5 {[%emt 0:00:14]} 39. b5 {[%emt 0:00:05]} cxb5 {[%emt 0:00:13]} 40. cxb5 {[%emt 0:00:02]} g5 {[%emt 0:00:16]} 41. b6 {[%emt 0:30:20]} Nc6 {[%emt 0:30:04]} 42. b7 {[%emt 0:00:08]} Nb8 {[%emt 0:00:05]} 43. Kc4 {[%emt 0:00:12]} e4 {[%emt 0:00:19]} 44. fxe4 {[%emt 0:00:07]} f4 {[%emt 0:00:05]} 45. h3 {[%emt 0:00:27]} Nc6 {[%emt 0:00:23]} 46. Kb5 {[%emt 0:00:11]} Nb8 {[%emt 0:00:20]} 47. e5 {[%emt 0:00:05]} 1-0

[Event "WJCC U20 Open 2019"]
[Site "New Delhi"]
[Date "2019.10.18"]
[Round "5.33"]
[White "Tica, Sven"]
[Black "Risting, Eivind Olav"]
[Result "1-0"]
[ECO "E04"]
[WhiteElo "2418"]
[BlackElo "2289"]
[Annotator "NA"]
[PlyCount "167"]
[EventDate "2019.10.15"]
[EventType "swiss"]
[EventCountry "IND"]
[SourceTitle "playchess.com"]
[Source "ChessBase"]
[SourceQuality "1"]
[TimeControl "40/5400+30:1800+30"]

1. d4 {[%emt 0:00:00]} Nf6 {[%emt 0:00:00]} 2. c4 {[%emt 0:00:00]} e6 {[%emt 0:00:00]} 3. g3 {[%emt 0:00:00]} d5 {[%emt 0:00:14]} 4. Bg2 {[%emt 0:00:00]} dxc4 {[%emt 0:00:07]} 5. Nf3 {[%emt 0:00:01]} c5 {[%emt 0:00:15]} 6. O-O {[%emt 0:00:07]} Nc6 {[%emt 0:00:18]} 7. dxc5 {[%emt 0:00:07]} Qxd1 {[%emt 0:00:12]} 8. Rxd1 {[%emt 0:00:05]} Bxc5 {[%emt 0:00:07]} 9. Nbd2 {[%emt 0:00:04]} c3 {[%emt 0:00:37]} 10. bxc3 {[%emt 0:00:05]} O-O {[%emt 0:00:09]} 11. Nb3 {[%emt 0:00:04]} Be7 {[%emt 0:00:13]} 12. Nfd4 {[%emt 0:00:06]} Bd7 {[%emt 0:00:51]} 13. Nxc6 {[%emt 0:00:06]} Bxc6 {[%emt 0:01:27]} 14. Bxc6 {[%emt 0:00:06]} bxc6 {[%emt 0:00:04]} 15. c4 {[%emt 0:00:05]} a5 {[%emt 0:17:52]} 16. Bd2 $11 {[%emt 0:00:05]} Bb4 {[%emt 0:14:47]} 17. a3 {[%emt 0:12:44]} Bxd2 {[%emt 0:01:39]} 18. Rxd2 {[%emt 0:00:05]} a4 {[%emt 0:08:59]} 19. Nc5 {[%emt 0:01:07]} Rfb8 {[%emt 0:08:25]} 20. Rd6 {[%emt 0:00:29]} h5 {[%emt 0:17:44]} 21. Rxc6 {[%emt 0:02:01]} Rb2 {[%emt 0:00:57]} 22. Kf1 {[%emt 0:02:52]} Rc2 {[%emt 0:05:51]} 23. Nd3 {[%emt 0:00:18]} Ne4 {[%emt 0:01:04]} 24. Ke1 {[%emt 0:08:24]} Rb8 {[%emt 0:02:05]} 25. Nb4 {[%emt 0:12:53]} Rb2 {[%emt 0:03:10]} 26. c5 {[%emt 0:01:21]} Nc3 {[%emt 0:01:31]} 27. Rc1 {[%emt 0:10:02]} Nxe2 {[%emt 0:03:51]} 28. Rb6 {[%emt 0:01:50]} Rc8 {[%emt 0:02:15]} 29. Rc4 {[%emt 0:00:41]} Ng1 {[%emt 0:01:48]} 30. Nc6 {[%emt 0:17:47]} Nf3+ {[%emt 0:01:06]} 31. Kd1 {[%emt 0:00:06]} Rd2+ {[%emt 0:01:06]} 32. Kc1 {[%emt 0:00:07]} Rd7 {[%emt 0:02:22]} 33. Nb8 {[%emt 0:02:08]} Ra7 {[%emt 0:02:10]} 34. c6 {[%emt 0:02:25]} Kf8 {[%emt 0:00:16]} 35. Rc3 {[%emt 0:07:20]} Nd4 {[%emt 0:01:11]} 36. Kd2 {[%emt 0:00:49]} Rac7 {[%emt 0:00:50]} 37. Kd3 {[%emt 0:00:54]} Nf5 {[%emt 0:01:22]} 38. Na6 {[%emt 0:01:04]} Rd8+ {[%emt 0:01:15]} 39. Kc4 {[%emt 0:01:14]} Rd4+ {[%emt 0:00:33]} 40. Kc5 {[%emt 0:02:09]} Rd5+ {[%emt 0:00:31]} 41. Kb4 {[%emt 0:30:20]} Rc8 {[%emt 0:01:55]} 42. c7 {[%emt 0:00:00]} Ke7 {[%emt 0:01:28]} 43. Kxa4 {[%emt 0:00:00]} Nd6 {[%emt 0:03:24]} 44. Kb4 {[%emt 0:00:00]} Rd2 {[%emt 0:01:34]} 45. Kb3 {[%emt 0:00:00]} e5 {[%emt 0:02:07]} 46. a4 {[%emt 0:00:00]} e4 {[%emt 0:01:06]} 47. a5 {[%emt 0:00:00]} Rxf2 {[%emt 0:01:22]} 48. Nb4 {[%emt 0:00:00]} Rf3 {[%emt 0:02:51]} 49. Nd5+ {[%emt 0:00:00]} Ke6 {[%emt 0:00:38]} 50. Ne3 {[%emt 0:00:00]} Kd7 {[%emt 0:02:08]} 51. a6 {[%emt 0:00:00]} Rxc7 {[%emt 0:01:01]} 52. Rxc7+ {[%emt 0:00:00]} Kxc7 {[%emt 0:00:02]} 53. a7 {[%emt 0:00:00]} Kxb6 {[%emt 0:02:19]} 54. a8=Q {[%emt 0:00:00]} Rxe3+ {[%emt 0:00:08]} 55. Kb4 {[%emt 0:00:00]} Rd3 {[%emt 0:00:43]} 56. Qa5+ {[%emt 0:00:00]} Kc6 {[%emt 0:00:40]} 57. Qc5+ {[%emt 0:00:00]} Kd7 {[%emt 0:00:20]} 58. Qxh5 {[%emt 0:00:00]} g6 {[%emt 0:02:19]} 59. Qg4+ {[%emt 0:00:38]} Nf5 {[%emt 0:00:59]} 60. Kc5 {[%emt 0:02:04]} Rd4 {[%emt 0:04:37]} 61. Qe2 {[%emt 0:01:24]} Rd6 {[%emt 0:04:17]} 62. Qxe4 {[%emt 0:02:26]} Re6 {[%emt 0:00:26]} 63. Qb7+ {[%emt 0:00:40]} Ke8 {[%emt 0:00:10]} 64. g4 {[%emt 0:00:43]} Ne3 {[%emt 0:01:33]} 65. Qf3 {[%emt 0:00:36]} Kf8 {[%emt 0:00:33]} 66. h4 {[%emt 0:00:36]} Kg7 {[%emt 0:00:35]} 67. Qf4 {[%emt 0:00:24]} Kg8 {[%emt 0:03:33]} 68. Kd4 {[%emt 0:01:36]} f5 {[%emt 0:01:09]} 69. Qb8+ {[%emt 0:00:06]} Kf7 {[%emt 0:00:27]} 70. g5 {[%emt 0:00:22]} Ng4 {[%emt 0:00:49]} 71. Qh8 {[%emt 0:00:38]} Ke7 {[%emt 0:00:30]} 72. Qg7+ {[%emt 0:00:48]} Kd6 {[%emt 0:00:20]} 73. Qf8+ {[%emt 0:00:22]} Kd7 {[%emt 0:00:31]} 74. h5 {[%emt 0:03:26]} gxh5 {[%emt 0:00:02]} 75. Qxf5 {[%emt 0:00:10]} Ke7 {[%emt 0:01:05]} 76. Qh7+ {[%emt 0:00:24]} Kd6 {[%emt 0:00:09]} 77. Qxh5 {[%emt 0:00:40]} Ne5 {[%emt 0:00:24]} 78. Qh2 {[%emt 0:00:21]} Kd7 {[%emt 0:00:33]} 79. Qxe5 {[%emt 0:02:55]} Rxe5 {[%emt 0:00:10]} 80. Kxe5 {[%emt 0:00:05]} Ke7 {[%emt 0:00:23]} 81. g6 {[%emt 0:00:11]} Ke8 {[%emt 0:00:15]} 82. Ke6 {[%emt 0:00:06]} Kf8 {[%emt 0:00:07]} 83. Kf6 {[%emt 0:00:04]} Kg8 {[%emt 0:00:05]} 84. g7 {[%emt 0:00:04]} 1-0

[Event "WJCC U20 Open 2019"]
[Site "New Delhi"]
[Date "2019.10.18"]
[Round "5.36"]
[White "Milikow, Yoav"]
[Black "Muthaiah AL"]
[Result "1-0"]
[ECO "B06"]
[WhiteElo "2199"]
[BlackElo "2370"]
[Annotator "NA"]
[PlyCount "63"]
[EventDate "2019.10.15"]
[EventType "swiss"]
[EventCountry "IND"]
[SourceTitle "playchess.com"]
[Source "ChessBase"]
[SourceQuality "1"]
[TimeControl "40/5400+30:1800+30"]

1. d4 {[%emt 0:00:00]} d6 {[%emt 0:00:59]} 2. e4 {[%emt 0:00:12]} g6 {[%emt 0:00:31]} 3. Nc3 {[%emt 0:00:46]} Bg7 {[%emt 0:00:30]} 4. Be3 {[%emt 0:00:50]} a6 {[%emt 0:01:00]} 5. Qd2 {[%emt 0:01:45]} b5 {[%emt 0:00:55]} 6. Nf3 {[%emt 0:07:34]} Bb7 {[%emt 0:02:29]} 7. O-O-O {[%emt 0:05:03]} Nf6 {[%emt 0:23:57]} 8. e5 {[%emt 0:10:36]} dxe5 {[%emt 0:02:00]} 9. Nxe5 {[%emt 0:00:37]} O-O {[%emt 0:02:43]} 10. Kb1 {[%emt 0:06:18]} Nbd7 {[%emt 0:05:40]} 11. f4 {[%emt 0:09:03]} e6 {[%emt 0:07:41]} 12. a3 {[%emt 0:03:51]} Qe7 {[%emt 0:01:59]} 13. Rg1 {[%emt 0:08:39]} Rfd8 {[%emt 0:05:09]} 14. g4 {[%emt 0:02:34]} c5 {[%emt 0:12:48]} 15. Bg2 {[%emt 0:02:18]} Nb6 {[%emt 0:02:33]} 16. Qe2 {[%emt 0:03:19]} cxd4 {[%emt 0:09:32]} 17. Bxd4 {[%emt 0:01:06]} Nbd5 {[%emt 0:01:07]} 18. Nxd5 {[%emt 0:01:43]} Nxd5 {[%emt 0:00:15]} 19. Qf2 {[%emt 0:01:31]} Rac8 {[%emt 0:02:37]} 20. g5 {[%emt 0:01:30]} b4 {[%emt 0:04:31]} 21. axb4 {[%emt 0:00:18]} Qxb4 {[%emt 0:06:56]} 22. Rd3 {[%emt 0:01:34]} Bxe5 {[%emt 0:01:06]} 23. Bxe5 {[%emt 0:00:54]} Qc4 {[%emt 0:00:57]} 24. Rgd1 {[%emt 0:01:06]} Re8 {[%emt 0:01:41]} 25. b3 {[%emt 0:02:12]} Qb4 {[%emt 0:00:20]} 26. Qh4 {[%emt 0:01:31]} h5 {[%emt 0:02:06]} 27. gxh6 {[%emt 0:00:21]} Kh7 {[%emt 0:00:11]} 28. Bxd5 {[%emt 0:00:42]} Bxd5 {[%emt 0:00:30]} 29. Qf6 {[%emt 0:00:31]} Qf8 {[%emt 0:00:08]} 30. Rh3 {[%emt 0:00:26]} g5 {[%emt 0:00:25]} 31. Rxd5 {[%emt 0:00:38]} g4 {[%emt 0:00:54]} 32. Rd7 {[%emt 0:00:33]} 1-0

[Event "WJCC U20 Open 2019"]
[Site "New Delhi"]
[Date "2019.10.18"]
[Round "5.37"]
[White "Kukelko, Alexey"]
[Black "Maltezeanu, Stefan"]
[Result "1-0"]
[ECO "B76"]
[WhiteElo "2342"]
[BlackElo "2102"]
[Annotator "NA"]
[PlyCount "117"]
[EventDate "2019.10.15"]
[EventType "swiss"]
[EventCountry "IND"]
[SourceTitle "playchess.com"]
[Source "ChessBase"]
[SourceQuality "1"]
[TimeControl "40/5400+30:1800+30"]

1. e4 {[%emt 0:00:00]} c5 {[%emt 0:00:00]} 2. Nf3 {[%emt 0:00:00]} d6 {[%emt 0:00:00]} 3. d4 {[%emt 0:00:08]} cxd4 {[%emt 0:00:00]} 4. Nxd4 {[%emt 0:00:03]} Nf6 {[%emt 0:00:04]} 5. Nc3 {[%emt 0:00:10]} g6 {[%emt 0:00:05]} 6. Be3 {[%emt 0:00:26]} Bg7 {[%emt 0:00:10]} 7. f3 {[%emt 0:00:19]} Nc6 {[%emt 0:00:10]} 8. Qd2 {[%emt 0:00:07]} O-O {[%emt 0:00:12]} 9. O-O-O {[%emt 0:00:09]} d5 {[%emt 0:00:06]} 10. Kb1 {[%emt 0:00:25]} Nxd4 {[%emt 0:01:14]} 11. e5 {[%emt 0:00:14]} Nf5 {[%emt 0:00:30]} 12. exf6 {[%emt 0:00:05]} exf6 {[%emt 0:00:04]} 13. Nxd5 {[%emt 0:00:06]} Nxe3 {[%emt 0:01:19]} 14. Qxe3 {[%emt 0:00:04]} Be6 {[%emt 0:02:32]} 15. Bc4 {[%emt 0:00:06]} Bxd5 {[%emt 0:06:54]} 16. Bxd5 Qc7 {[%emt 0:02:25]} 17. h4 {[%emt 0:02:51]} Rfe8 {[%emt 0:04:40]} 18. Qb3 {[%emt 0:04:04]} Re7 {[%emt 0:02:59]} 19. g4 {[%emt 0:03:00]} Rb8 {[%emt 0:10:37]} 20. h5 {[%emt 0:11:46]} b5 {[%emt 0:01:34]} 21. Rhe1 {[%emt 0:14:38]} a5 {[%emt 0:07:12]} 22. Rxe7 {[%emt 0:24:06]} Qxe7 {[%emt 0:00:06]} 23. a4 {[%emt 0:00:19]} b4 {[%emt 0:17:57]} 24. hxg6 {[%emt 0:04:25]} hxg6 {[%emt 0:00:07]} 25. Be4 {[%emt 0:00:02]} Rd8 {[%emt 0:11:25]} 26. Rxd8+ {[%emt 0:00:46]} Qxd8 {[%emt 0:00:05]} 27. Bxg6 {[%emt 0:00:03]} Qc7 {[%emt 0:00:35]} 28. Qd5 {[%emt 0:02:39]} Bf8 {[%emt 0:03:16]} 29. Be4 {[%emt 0:07:15]} Bd6 {[%emt 0:04:20]} 30. Qf5 {[%emt 0:05:16]} Be5 {[%emt 0:03:36]} 31. Bd5 {[%emt 0:01:51]} Kg7 {[%emt 0:04:08]} 32. Bb3 {[%emt 0:02:53]} Bf4 {[%emt 0:09:54]} 33. Ka2 {[%emt 0:06:58]} Be5 {[%emt 0:04:09]} 34. Qh5 {[%emt 0:04:19]} Bf4 {[%emt 0:01:10]} 35. Kb1 {[%emt 0:01:07]} Be3 {[%emt 0:01:08]} 36. Bd5 {[%emt 0:00:33]} Bf4 {[%emt 0:00:53]} 37. Qf5 {[%emt 0:01:31]} Be5 {[%emt 0:00:37]} 38. Be4 {[%emt 0:00:42]} Kf8 {[%emt 0:01:41]} 39. Qh5 {[%emt 0:01:35]} Kg7 {[%emt 0:00:58]} 40. Qh7+ {[%emt 0:01:02]} Kf8 {[%emt 0:00:08]} 41. Bd5 {[%emt 0:31:56]} Qd7 {[%emt 0:02:53]} 42. Bb3 {[%emt 0:00:00]} Qc7 {[%emt 0:00:42]} 43. Qh8+ {[%emt 0:00:00]} Ke7 {[%emt 0:00:10]} 44. Qg8 {[%emt 0:00:00]} Kd6 {[%emt 0:01:58]} 45. Bxf7 {[%emt 0:00:00]} Kc5 {[%emt 0:01:52]} 46. Qe8 {[%emt 0:00:00]} Qc6 {[%emt 0:03:43]} 47. Qe7+ {[%emt 0:00:00]} Kb6 {[%emt 0:00:11]} 48. g5 {[%emt 0:00:00]} Qd6 {[%emt 0:12:27]} 49. Qxd6+ {[%emt 0:00:00]} Bxd6 {[%emt 0:00:05]} 50. g6 {[%emt 0:00:00]} Bf8 {[%emt 0:00:12]} 51. c3 {[%emt 0:00:00]} Kc5 {[%emt 0:01:24]} 52. Kc2 {[%emt 0:00:00]} bxc3 {[%emt 0:02:24]} 53. bxc3 {[%emt 0:00:00]} Kd6 {[%emt 0:03:14]} 54. Kd3 {[%emt 0:00:00]} f5 {[%emt 0:02:21]} 55. f4 {[%emt 0:04:37]} Bg7 {[%emt 0:00:52]} 56. c4 {[%emt 0:00:04]} Bb2 {[%emt 0:00:58]} 57. Ke3 {[%emt 0:00:06]} Ke7 {[%emt 0:03:07]} 58. c5 {[%emt 0:01:25]} Bd4+ {[%emt 0:00:10]} 59. Kxd4 {[%emt 0:02:25]} 1-0

[Event "WJCC U20 Open 2019"]
[Site "New Delhi"]
[Date "2019.10.18"]
[Round "5.38"]
[White "Hamad Essam"]
[Black "Pranav Vijay"]
[Result "0-1"]
[ECO "B30"]
[WhiteElo "1849"]
[BlackElo "2265"]
[Annotator "NA"]
[PlyCount "145"]
[EventDate "2019.10.15"]
[EventType "swiss"]
[EventCountry "IND"]
[SourceTitle "playchess.com"]
[Source "ChessBase"]
[SourceQuality "1"]
[TimeControl "40/5400+30:1800+30"]

1. e4 c5 2. Nf3 Nc6 3. c3 Nf6 4. e5 Nd5 5. d4 cxd4 6. cxd4 d6 7. Bc4 Nb6 8. Bb5 Bd7 9. exd6 e6 10. Nc3 Bxd6 11. O-O a6 12. Bd3 Nb4 13. Bb1 Rc8 14. Ne4 Bc6 15. Nxd6+ Qxd6 16. Ne5 N4d5 17. Qg4 Kf8 18. Qg3 Qc7 19. Nxc6 Qxg3 20. hxg3 Rxc6 21. Be4 Ke7 22. Bd2 Rc4 23. Rfd1 Kd7 24. Ba5 f5 25. Bf3 Rb8 26. g4 g6 27. gxf5 gxf5 28. Rd2 Kd6 29. Re1 Nd7 30. b3 Rcc8 31. Rde2 Re8 32. g3 Rbc8 33. Kg2 N7f6 34. Bd2 Rc2 35. Bg5 Rxe2 36. Rxe2 b6 37. Rc2 Ne4 38. Bxe4 fxe4 39. Re2 Rg8 40. Bc1 Rg4 41. Kh3 h5 42. Rc2 Kd7 43. a3 b5 44. Bd2 Rg6 45. Kh4 Rf6 46. Bc1 Rf3 47. b4 Rd3 48. Kxh5 Rxd4 49. Bb2 Rd3 50. Re2 Rb3 51. Kh4 Kd6 52. g4 Nf4 53. Rc2 Nd3 54. Bf6 Rxa3 55. g5 Nf4 56. Rc8 Rf3 57. Rd8+ Kc7 58. Rd4 Nd5 59. Be5+ Kd7 60. Rxe4 Rxf2 61. g6 Ke7 62. g7 Kf7 63. Bg3 Rf6 64. Be5 Rh6+ 65. Kg5 Rg6+ 66. Kh4 Nf6 67. Rf4 Rg3 68. Kxg3 Kxg7 69. Rd4 Kg6 70. Rd8 Kf5 71. Ba1 Nd5 72. Rf8+ Ke4 73. Bb2 0-1